[Event "Titled Tuesday Blitz June 22 2021"]
[White "Ogloblin, Nikolay"]
[Black "Timofeev, Artyom"]
[WhiteFideId "4139658"]
[BlackFideId "4140419"]
[WhiteElo "2296"]
[BlackElo "2582"]
[Result "0-1"]
[Round "11"]
[TimeControl "180+1"]
[Date "2021.06.22"]
[WhiteClock "0:00:29"]
[BlackClock "0:01:23"]

1. d4 {[%clk 0:03:00]}  Nf6 {[%clk 0:02:59]} 2. Nf3 {[%clk 0:03:01]}  g6 {[%clk 0:02:58]} 3. c4 {[%clk 0:03:02]}  b6 {[%clk 0:02:58]} 4. Nc3 {[%clk 0:03:02]}  Bb7 {[%clk 0:02:58]} 5. Bg5 {[%clk 0:03:01]}  Bg7 {[%clk 0:02:58]} 6. Qc2 {[%clk 0:03:00]}  h6 {[%clk 0:02:48]} 7. Bf4 {[%clk 0:03:00]}  O-O {[%clk 0:02:40]} 8. e3 {[%clk 0:03:00]}  c5 {[%clk 0:02:39]} 9. d5 {[%clk 0:02:59]}  d6 {[%clk 0:02:39]} 10. h3 {[%clk 0:02:58]}  Nbd7 {[%clk 0:02:37]} 11. Be2 {[%clk 0:02:57]}  a6 {[%clk 0:02:37]} 12. Rd1 {[%clk 0:02:56]}  b5 {[%clk 0:02:34]} 13. O-O {[%clk 0:02:54]}  bxc4 {[%clk 0:02:33]} 14. Bxc4 {[%clk 0:02:54]}  Nb6 {[%clk 0:02:33]} 15. b3 {[%clk 0:02:55]}  Bc8 {[%clk 0:02:29]} 16. e4 {[%clk 0:02:55]}  Nfd7 {[%clk 0:02:28]} 17. Rfe1 {[%clk 0:02:52]}  Nxc4 {[%clk 0:02:28]} 18. bxc4 {[%clk 0:02:52]}  Rb8 {[%clk 0:02:15]} 19. Rb1 {[%clk 0:02:43]}  Rb4 {[%clk 0:02:14]} 20. Ne2 {[%clk 0:02:36]}  Nb6 {[%clk 0:02:10]} 21. Nd2 {[%clk 0:02:32]}  Bd7 {[%clk 0:02:10]} 22. a3 {[%clk 0:02:26]}  Rxb1 {[%clk 0:02:02]} 23. Rxb1 {[%clk 0:02:23]}  Qc7 {[%clk 0:02:01]} 24. Nf3 {[%clk 0:02:17]}  Rb8 {[%clk 0:01:59]} 25. Kh2 {[%clk 0:02:04]}  Nc8 {[%clk 0:01:58]} 26. Rxb8 {[%clk 0:01:58]}  Qxb8 {[%clk 0:01:58]} 27. Nd2 {[%clk 0:01:55]}  Qb2 {[%clk 0:01:54]} 28. Qxb2 {[%clk 0:01:54]}  Bxb2 {[%clk 0:01:54]} 29. Nb1 {[%clk 0:01:54]}  g5 {[%clk 0:01:53]} 30. Bc1 {[%clk 0:01:52]}  Be5+ {[%clk 0:01:53]} 31. g3 {[%clk 0:01:52]}  f5 {[%clk 0:01:53]} 32. f4 {[%clk 0:01:51]}  gxf4 {[%clk 0:01:52]} 33. gxf4 {[%clk 0:01:52]}  Bg7 {[%clk 0:01:50]} 34. Nbc3 {[%clk 0:01:43]}  fxe4 {[%clk 0:01:49]} 35. Nxe4 {[%clk 0:01:42]}  Nb6 {[%clk 0:01:49]} 36. N2g3 {[%clk 0:01:04]}  Nxc4 {[%clk 0:01:47]} 37. Nh5 {[%clk 0:01:05]}  Bd4 {[%clk 0:01:45]} 38. Kg3 {[%clk 0:00:59]}  Nb6 {[%clk 0:01:41]} 39. f5 {[%clk 0:00:51]}  Bxf5 {[%clk 0:01:40]} 40. Kf4 {[%clk 0:00:50]}  Bg6 {[%clk 0:01:40]} 41. Nhg3 {[%clk 0:00:42]}  Nxd5+ {[%clk 0:01:39]} 42. Kf3 {[%clk 0:00:41]}  h5 {[%clk 0:01:35]} 43. Bg5 {[%clk 0:00:40]}  Kf7 {[%clk 0:01:34]} 44. h4 {[%clk 0:00:40]}  Be5 {[%clk 0:01:31]} 45. Nd2 {[%clk 0:00:33]}  Nb6 {[%clk 0:01:27]} 46. Nge4 {[%clk 0:00:32]}  c4 {[%clk 0:01:27]} 47. Nb1 {[%clk 0:00:30]}  d5 {[%clk 0:01:24]} 48. Nc5 {[%clk 0:00:29]}  Bxb1 {[%clk 0:01:23]} 0-1


[Site "https://www.chess.com"]

[Event "Titled Tuesday Blitz June 22 2021"]
[White "Pajeken, Jakob Leon"]
[Black "Mons, Leon"]
[WhiteFideId "12942839"]
[BlackFideId "4614950"]
[WhiteElo "2024"]
[BlackElo "2492"]
[Result "0-1"]
[Round "11"]
[TimeControl "180+1"]
[Date "2021.06.22"]
[WhiteClock "0:01:35"]
[BlackClock "0:01:38"]

1. d4 {[%clk 0:03:00]}  Nf6 {[%clk 0:02:59]} 2. Nf3 {[%clk 0:03:01]}  b6 {[%clk 0:02:58]} 3. c4 {[%clk 0:02:59]}  Bb7 {[%clk 0:02:58]} 4. g3 {[%clk 0:02:57]}  g6 {[%clk 0:02:58]} 5. Bg2 {[%clk 0:02:57]}  Bg7 {[%clk 0:02:59]} 6. O-O {[%clk 0:02:58]}  O-O {[%clk 0:02:59]} 7. d5 {[%clk 0:02:58]}  Ne4 {[%clk 0:02:56]} 8. Nd4 {[%clk 0:02:50]}  f5 {[%clk 0:02:54]} 9. f3 {[%clk 0:02:49]}  Nd6 {[%clk 0:02:53]} 10. Na3 {[%clk 0:02:42]}  c6 {[%clk 0:02:34]} 11. dxc6 {[%clk 0:02:31]}  Nxc6 {[%clk 0:02:35]} 12. Nxc6 {[%clk 0:02:31]}  dxc6 {[%clk 0:02:27]} 13. Rb1 {[%clk 0:02:30]}  c5 {[%clk 0:02:25]} 14. b3 {[%clk 0:02:28]}  e5 {[%clk 0:02:20]} 15. Bb2 {[%clk 0:02:18]}  Qe7 {[%clk 0:02:20]} 16. Qc2 {[%clk 0:02:16]}  Rad8 {[%clk 0:02:19]} 17. Rbd1 {[%clk 0:02:14]}  f4 {[%clk 0:02:08]} 18. Nb1 {[%clk 0:01:51]}  Nf5 {[%clk 0:02:06]} 19. Bc1 {[%clk 0:01:50]}  fxg3 {[%clk 0:02:01]} 20. e4 {[%clk 0:01:44]}  gxh2+ {[%clk 0:01:59]} 21. Kxh2 {[%clk 0:01:45]}  Qh4+ {[%clk 0:01:57]} 22. Kg1 {[%clk 0:01:43]}  Nd4 {[%clk 0:01:42]} 23. Qf2 {[%clk 0:01:34]}  Qxf2+ {[%clk 0:01:40]} 24. Rxf2 {[%clk 0:01:35]}  Ne2+ {[%clk 0:01:38]} 0-1


[Site "https://www.chess.com"]

[Event "Titled Tuesday Blitz June 22 2021"]
[White "Papasimakopoulos, Alexandros"]
[Black "Dixit, Nikhil"]
[WhiteFideId "4244125"]
[BlackFideId "5059534"]
[WhiteElo "2352"]
[BlackElo "2223"]
[Result "1-0"]
[Round "11"]
[TimeControl "180+1"]
[Date "2021.06.22"]
[WhiteClock "0:00:18"]
[BlackClock "0:00:33"]

1. d4 {[%clk 0:03:00]}  Nf6 {[%clk 0:02:55]} 2. c4 {[%clk 0:03:00]}  g6 {[%clk 0:02:52]} 3. Nc3 {[%clk 0:03:00]}  Bg7 {[%clk 0:02:53]} 4. e4 {[%clk 0:03:00]}  O-O {[%clk 0:02:54]} 5. f3 {[%clk 0:03:00]}  d6 {[%clk 0:02:54]} 6. Nge2 {[%clk 0:03:00]}  e5 {[%clk 0:02:52]} 7. Be3 {[%clk 0:03:00]}  exd4 {[%clk 0:02:52]} 8. Nxd4 {[%clk 0:02:59]}  Nc6 {[%clk 0:02:53]} 9. Be2 {[%clk 0:03:00]}  Bd7 {[%clk 0:02:50]} 10. O-O {[%clk 0:02:59]}  Nxd4 {[%clk 0:02:49]} 11. Bxd4 {[%clk 0:02:59]}  Bc6 {[%clk 0:02:46]} 12. b4 {[%clk 0:02:58]}  b6 {[%clk 0:02:40]} 13. Nd5 {[%clk 0:02:52]}  Nxd5 {[%clk 0:02:36]} 14. cxd5 {[%clk 0:02:52]}  Bd7 {[%clk 0:02:36]} 15. Bxg7 {[%clk 0:02:51]}  Kxg7 {[%clk 0:02:37]} 16. Rc1 {[%clk 0:02:48]}  a5 {[%clk 0:02:33]} 17. Qd4+ {[%clk 0:02:47]}  Kg8 {[%clk 0:02:32]} 18. b5 {[%clk 0:02:38]}  Ra7 {[%clk 0:02:29]} 19. Rc3 {[%clk 0:02:29]}  Qe8 {[%clk 0:02:24]} 20. a4 {[%clk 0:02:28]}  Qe7 {[%clk 0:02:19]} 21. f4 {[%clk 0:02:17]}  Re8 {[%clk 0:02:16]} 22. Re3 {[%clk 0:02:17]}  f6 {[%clk 0:02:10]} 23. Bf3 {[%clk 0:02:08]}  g5 {[%clk 0:02:06]} 24. fxg5 {[%clk 0:01:51]}  fxg5 {[%clk 0:02:07]} 25. Bh5 {[%clk 0:01:51]}  Qe5 {[%clk 0:02:04]} 26. Qd2 {[%clk 0:01:33]}  Re7 {[%clk 0:01:58]} 27. Rg3 {[%clk 0:01:22]}  h6 {[%clk 0:01:49]} 28. Qf2 {[%clk 0:00:58]}  Ra8 {[%clk 0:01:45]} 29. h4 {[%clk 0:00:58]}  g4 {[%clk 0:01:13]} 30. Bxg4 {[%clk 0:00:56]}  Bxg4 {[%clk 0:01:14]} 31. Rxg4+ {[%clk 0:00:55]}  Kh7 {[%clk 0:01:13]} 32. Qf5+ {[%clk 0:00:21]}  Qxf5 {[%clk 0:01:08]} 33. Rxf5 {[%clk 0:00:20]}  Rae8 {[%clk 0:01:04]} 34. Rff4 {[%clk 0:00:20]}  Rg7 {[%clk 0:01:00]} 35. Rxg7+ {[%clk 0:00:20]}  Kxg7 {[%clk 0:01:01]} 36. Kf2 {[%clk 0:00:20]}  Kg6 {[%clk 0:00:59]} 37. g4 {[%clk 0:00:20]}  Re7 {[%clk 0:00:56]} 38. Kf3 {[%clk 0:00:20]}  Kg7 {[%clk 0:00:54]} 39. Rf5 {[%clk 0:00:20]}  Kg6 {[%clk 0:00:54]} 40. Kf4 {[%clk 0:00:21]}  Kg7 {[%clk 0:00:53]} 41. e5 {[%clk 0:00:21]}  dxe5+ {[%clk 0:00:53]} 42. Rxe5 {[%clk 0:00:22]}  Rf7+ {[%clk 0:00:54]} 43. Rf5 {[%clk 0:00:22]}  Re7 {[%clk 0:00:50]} 44. g5 {[%clk 0:00:22]}  hxg5+ {[%clk 0:00:46]} 45. Rxg5+ {[%clk 0:00:23]}  Kf6 {[%clk 0:00:46]} 46. Rh5 {[%clk 0:00:23]}  Re1 {[%clk 0:00:45]} 47. Rh6+ {[%clk 0:00:23]}  Ke7 {[%clk 0:00:44]} 48. Rc6 {[%clk 0:00:24]}  Kd7 {[%clk 0:00:43]} 49. h5 {[%clk 0:00:24]}  Ra1 {[%clk 0:00:42]} 50. h6 {[%clk 0:00:25]}  Rxa4+ {[%clk 0:00:43]} 51. Kg5 {[%clk 0:00:25]}  Ra1 {[%clk 0:00:39]} 52. h7 {[%clk 0:00:25]}  Rg1+ {[%clk 0:00:39]} 53. Kh6 {[%clk 0:00:26]}  Rh1+ {[%clk 0:00:39]} 54. Kg7 {[%clk 0:00:26]}  Rxh7+ {[%clk 0:00:36]} 55. Kxh7 {[%clk 0:00:26]}  a4 {[%clk 0:00:36]} 56. d6 {[%clk 0:00:17]}  cxd6 {[%clk 0:00:33]} 57. Rxb6 {[%clk 0:00:17]}  Kc7 {[%clk 0:00:31]} 58. Ra6 {[%clk 0:00:17]}  Kb7 {[%clk 0:00:32]} 59. Kg6 {[%clk 0:00:17]}  d5 {[%clk 0:00:32]} 60. Kf5 {[%clk 0:00:17]}  d4 {[%clk 0:00:33]} 61. Ke4 {[%clk 0:00:18]}  d3 {[%clk 0:00:33]} 62. Kxd3 {[%clk 0:00:18]} 1-0


[Site "https://www.chess.com"]

[Event "Titled Tuesday Blitz June 22 2021"]
[White "Perez Gormaz, Matias"]
[Black "Mikhalsky, Vladimir"]
[WhiteFideId "3406342"]
[BlackFideId "14144352"]
[WhiteElo "2414"]
[BlackElo "2280"]
[Result "0-1"]
[Round "11"]
[TimeControl "180+1"]
[Date "2021.06.22"]
[WhiteClock "0:00:54"]
[BlackClock "0:01:18"]

1. e4 {[%clk 0:03:00]}  g6 {[%clk 0:02:58]} 2. d4 {[%clk 0:02:59]}  Bg7 {[%clk 0:02:58]} 3. Nc3 {[%clk 0:02:59]}  d6 {[%clk 0:02:58]} 4. Be3 {[%clk 0:02:59]}  a6 {[%clk 0:02:58]} 5. g4 {[%clk 0:02:54]}  h5 {[%clk 0:02:51]} 6. gxh5 {[%clk 0:02:46]}  Rxh5 {[%clk 0:02:51]} 7. Be2 {[%clk 0:02:42]}  Rh8 {[%clk 0:02:51]} 8. h4 {[%clk 0:02:42]}  Nf6 {[%clk 0:02:50]} 9. h5 {[%clk 0:02:33]}  gxh5 {[%clk 0:02:39]} 10. Bxh5 {[%clk 0:02:32]}  Bg4 {[%clk 0:02:34]} 11. Bxg4 {[%clk 0:02:30]}  Rxh1 {[%clk 0:02:34]} 12. Kf1 {[%clk 0:02:31]}  Nc6 {[%clk 0:02:18]} 13. Kg2 {[%clk 0:02:23]}  Rh4 {[%clk 0:02:17]} 14. Bf3 {[%clk 0:02:20]}  Bh6 {[%clk 0:02:11]} 15. Qd2 {[%clk 0:01:56]}  Bxe3 {[%clk 0:02:08]} 16. Qxe3 {[%clk 0:01:57]}  e5 {[%clk 0:02:07]} 17. Nge2 {[%clk 0:01:53]}  Qd7 {[%clk 0:01:58]} 18. d5 {[%clk 0:01:21]}  Qh3+ {[%clk 0:01:53]} 19. Kg1 {[%clk 0:01:07]}  Nd4 {[%clk 0:01:52]} 20. Bg2 {[%clk 0:01:01]}  Qh2+ {[%clk 0:01:39]} 21. Kf1 {[%clk 0:00:59]}  Nxc2 {[%clk 0:01:35]} 22. Qg5 {[%clk 0:00:58]}  Nxa1 {[%clk 0:01:26]} 23. Qxf6 {[%clk 0:00:58]}  Rh6 {[%clk 0:01:25]} 24. Qg5 {[%clk 0:00:54]}  Rg6 {[%clk 0:01:18]} 0-1


[Site "https://www.chess.com"]

[Event "Titled Tuesday Blitz June 22 2021"]
[White "Ponikarovsky, Alexey"]
[Black "Materia, Marco"]
[WhiteFideId "4122887"]
[BlackFideId "45150451"]
[WhiteElo "1944"]
[BlackElo "2668"]
[Result "1-0"]
[Round "11"]
[TimeControl "180+1"]
[Date "2021.06.22"]
[WhiteClock "0:00:56"]
[BlackClock "0:00:11"]

1. e4 {[%clk 0:03:00]}  c5 {[%clk 0:02:59]} 2. d4 {[%clk 0:02:59]}  cxd4 {[%clk 0:02:59]} 3. Nf3 {[%clk 0:02:58]}  Nc6 {[%clk 0:02:55]} 4. Bc4 {[%clk 0:02:58]}  e6 {[%clk 0:02:53]} 5. O-O {[%clk 0:02:57]}  Bc5 {[%clk 0:02:48]} 6. Qe2 {[%clk 0:02:58]}  Nge7 {[%clk 0:02:47]} 7. Bg5 {[%clk 0:02:57]}  O-O {[%clk 0:02:44]} 8. c3 {[%clk 0:02:53]}  dxc3 {[%clk 0:02:43]} 9. Nxc3 {[%clk 0:02:54]}  h6 {[%clk 0:02:42]} 10. Bh4 {[%clk 0:02:51]}  a6 {[%clk 0:02:39]} 11. Rfd1 {[%clk 0:02:51]}  d6 {[%clk 0:02:36]} 12. e5 {[%clk 0:02:49]}  d5 {[%clk 0:02:36]} 13. Ne4 {[%clk 0:02:47]}  Ba7 {[%clk 0:02:28]} 14. Bb3 {[%clk 0:02:44]}  Qc7 {[%clk 0:02:26]} 15. Nd6 {[%clk 0:02:34]}  Ng6 {[%clk 0:02:21]} 16. Bg3 {[%clk 0:02:31]}  Bd7 {[%clk 0:02:16]} 17. Rac1 {[%clk 0:02:31]}  b5 {[%clk 0:02:09]} 18. Bc2 {[%clk 0:02:28]}  Qb6 {[%clk 0:01:56]} 19. h4 {[%clk 0:02:25]}  Nge7 {[%clk 0:01:48]} 20. Bb1 {[%clk 0:02:23]}  f5 {[%clk 0:01:37]} 21. exf6 {[%clk 0:02:21]}  Rxf6 {[%clk 0:01:37]} 22. h5 {[%clk 0:02:12]}  Raf8 {[%clk 0:01:32]} 23. Qd3 {[%clk 0:02:10]}  Nf5 {[%clk 0:01:32]} 24. Nxf5 {[%clk 0:02:07]}  Rxf5 {[%clk 0:01:31]} 25. Nh4 {[%clk 0:02:05]}  Rxf2 {[%clk 0:01:28]} 26. Qh7+ {[%clk 0:02:02]}  Kf7 {[%clk 0:01:28]} 27. Bg6+ {[%clk 0:02:00]}  Kf6 {[%clk 0:01:14]} 28. Kh1 {[%clk 0:01:56]}  Qa5 {[%clk 0:00:36]} 29. Bxf2 {[%clk 0:01:51]}  Bxf2 {[%clk 0:00:36]} 30. Rf1 {[%clk 0:01:52]}  Qd2 {[%clk 0:00:35]} 31. Nf3 {[%clk 0:01:45]}  Qf4 {[%clk 0:00:25]} 32. Bb1 {[%clk 0:01:34]}  Ne7 {[%clk 0:00:25]} 33. Nh2 {[%clk 0:01:26]}  Kf7 {[%clk 0:00:21]} 34. Rc2 {[%clk 0:01:23]}  Ke8 {[%clk 0:00:20]} 35. Rcxf2 {[%clk 0:01:18]}  Qxf2 {[%clk 0:00:17]} 36. Rxf2 {[%clk 0:01:18]}  Rxf2 {[%clk 0:00:17]} 37. Qxg7 {[%clk 0:01:13]}  Rd2 {[%clk 0:00:16]} 38. Qh8+ {[%clk 0:01:02]}  Kf7 {[%clk 0:00:16]} 39. Bg6+ {[%clk 0:01:00]}  Nxg6 {[%clk 0:00:16]} 40. hxg6+ {[%clk 0:01:01]}  Kxg6 {[%clk 0:00:15]} 41. Nf3 {[%clk 0:01:01]}  Rd1+ {[%clk 0:00:14]} 42. Kh2 {[%clk 0:01:02]}  Kf5 {[%clk 0:00:12]} 43. Qxh6 {[%clk 0:01:01]}  Ke4 {[%clk 0:00:11]} 44. Qh7+ {[%clk 0:00:59]}  Ke3 {[%clk 0:00:11]} 45. Qxd7 {[%clk 0:00:59]}  d4 {[%clk 0:00:11]} 46. Qxe6+ {[%clk 0:00:59]}  Kf2 {[%clk 0:00:11]} 47. Qxa6 {[%clk 0:00:58]}  d3 {[%clk 0:00:11]} 48. Qxb5 {[%clk 0:00:58]}  d2 {[%clk 0:00:11]} 49. Nxd2 {[%clk 0:00:55]}  Rxd2 {[%clk 0:00:11]} 50. Qf5+ {[%clk 0:00:55]}  Ke3 {[%clk 0:00:11]} 51. Qg5+ {[%clk 0:00:55]}  Ke2 {[%clk 0:00:11]} 52. Qxd2+ {[%clk 0:00:56]}  Kxd2 {[%clk 0:00:11]} 53. a4 {[%clk 0:00:56]} 1-0


[Site "https://www.chess.com"]

[Event "Titled Tuesday Blitz June 22 2021"]
[White "Rojas Alarcon, Julian Antonio"]
[Black "Zhigalko, Sergei"]
[WhiteFideId "5107407"]
[BlackFideId "13502956"]
[WhiteElo "2333"]
[BlackElo "2662"]
[Result "0-1"]
[Round "11"]
[TimeControl "180+1"]
[Date "2021.06.22"]
[WhiteClock "0:00:55"]
[BlackClock "0:00:04"]

1. c4 {[%clk 0:03:00]}  e5 {[%clk 0:03:00]} 2. Nc3 {[%clk 0:02:51]}  Nf6 {[%clk 0:03:00]} 3. g3 {[%clk 0:02:51]}  c6 {[%clk 0:03:00]} 4. Nf3 {[%clk 0:02:51]}  d6 {[%clk 0:02:59]} 5. Bg2 {[%clk 0:02:49]}  Be7 {[%clk 0:02:58]} 6. d3 {[%clk 0:02:49]}  O-O {[%clk 0:02:58]} 7. Rb1 {[%clk 0:02:50]}  a5 {[%clk 0:02:57]} 8. a3 {[%clk 0:02:50]}  h6 {[%clk 0:02:57]} 9. b4 {[%clk 0:02:49]}  axb4 {[%clk 0:02:58]} 10. axb4 {[%clk 0:02:50]}  Be6 {[%clk 0:02:57]} 11. b5 {[%clk 0:02:50]}  Nbd7 {[%clk 0:02:57]} 12. bxc6 {[%clk 0:02:50]}  bxc6 {[%clk 0:02:57]} 13. O-O {[%clk 0:02:51]}  Re8 {[%clk 0:02:52]} 14. h3 {[%clk 0:02:49]}  d5 {[%clk 0:02:48]} 15. cxd5 {[%clk 0:02:48]}  cxd5 {[%clk 0:02:48]} 16. Bb2 {[%clk 0:02:49]}  Qa5 {[%clk 0:02:42]} 17. Nd2 {[%clk 0:02:47]}  Rec8 {[%clk 0:02:35]} 18. Ra1 {[%clk 0:02:36]}  Qb6 {[%clk 0:02:23]} 19. Rxa8 {[%clk 0:02:31]}  Rxa8 {[%clk 0:02:22]} 20. Ba1 {[%clk 0:02:29]}  Nc5 {[%clk 0:01:56]} 21. Qb1 {[%clk 0:02:27]}  Qd8 {[%clk 0:01:52]} 22. Rc1 {[%clk 0:02:13]}  Rb8 {[%clk 0:01:43]} 23. Qc2 {[%clk 0:02:12]}  Qd7 {[%clk 0:01:43]} 24. Kh2 {[%clk 0:02:02]}  d4 {[%clk 0:01:34]} 25. Nce4 {[%clk 0:02:01]}  Nfxe4 {[%clk 0:01:32]} 26. Nxe4 {[%clk 0:02:02]}  Nxe4 {[%clk 0:01:32]} 27. dxe4 {[%clk 0:02:02]}  Qb5 {[%clk 0:01:22]} 28. Qd3 {[%clk 0:01:55]}  Qxd3 {[%clk 0:01:00]} 29. exd3 {[%clk 0:01:56]}  Ra8 {[%clk 0:00:59]} 30. f4 {[%clk 0:01:52]}  f6 {[%clk 0:00:57]} 31. fxe5 {[%clk 0:01:43]}  fxe5 {[%clk 0:00:58]} 32. Bb2 {[%clk 0:01:40]}  Ra2 {[%clk 0:00:53]} 33. Rc2 {[%clk 0:01:40]}  Bb4 {[%clk 0:00:37]} 34. Rc6 {[%clk 0:01:26]}  Kf7 {[%clk 0:00:17]} 35. Bc1 {[%clk 0:01:23]}  Bc3 {[%clk 0:00:13]} 36. Be3 {[%clk 0:01:05]}  Bd7 {[%clk 0:00:05]} 37. Rc7 {[%clk 0:01:05]}  Ke8 {[%clk 0:00:04]} 38. Bg1 {[%clk 0:01:01]}  Bb5 {[%clk 0:00:05]} 39. Rc5 {[%clk 0:00:55]}  Bxd3 {[%clk 0:00:04]} 40. Rxe5+ {[%clk 0:00:56]}  Kd7 {[%clk 0:00:04]} 41. h4 {[%clk 0:00:55]}  Bf1 {[%clk 0:00:04]} 0-1


[Site "https://www.chess.com"]

[Event "Titled Tuesday Blitz June 22 2021"]
[White "Rustemov, Alexander"]
[Black "Sellitti, Federico"]
[WhiteFideId "4119002"]
[BlackFideId "821829"]
[WhiteElo "2780"]
[BlackElo "2584"]
[Result "1/2-1/2"]
[Round "11"]
[TimeControl "180+1"]
[Date "2021.06.22"]
[WhiteClock "0:00:20"]
[BlackClock "0:00:05"]

1. d4 {[%clk 0:03:00]}  d5 {[%clk 0:02:54]} 2. c4 {[%clk 0:03:01]}  Nc6 {[%clk 0:02:53]} 3. Nf3 {[%clk 0:02:55]}  Bg4 {[%clk 0:02:52]} 4. cxd5 {[%clk 0:02:54]}  Bxf3 {[%clk 0:02:52]} 5. gxf3 {[%clk 0:02:55]}  Qxd5 {[%clk 0:02:52]} 6. e3 {[%clk 0:02:56]}  e5 {[%clk 0:02:52]} 7. Nc3 {[%clk 0:02:56]}  Bb4 {[%clk 0:02:52]} 8. Bd2 {[%clk 0:02:57]}  Bxc3 {[%clk 0:02:52]} 9. bxc3 {[%clk 0:02:58]}  Nf6 {[%clk 0:02:52]} 10. Qb3 {[%clk 0:02:57]}  Qxb3 {[%clk 0:02:48]} 11. axb3 {[%clk 0:02:57]}  exd4 {[%clk 0:02:48]} 12. cxd4 {[%clk 0:02:55]}  O-O {[%clk 0:02:42]} 13. Bg2 {[%clk 0:02:53]}  a5 {[%clk 0:02:35]} 14. O-O {[%clk 0:02:48]}  Nb4 {[%clk 0:02:35]} 15. Rxa5 {[%clk 0:02:44]}  Rxa5 {[%clk 0:02:30]} 16. Bxb4 {[%clk 0:02:44]}  Rb5 {[%clk 0:02:29]} 17. Bxf8 {[%clk 0:02:44]}  Kxf8 {[%clk 0:02:30]} 18. Rb1 {[%clk 0:02:42]}  Nd5 {[%clk 0:02:17]} 19. Bf1 {[%clk 0:02:40]}  Rb4 {[%clk 0:02:16]} 20. Bd3 {[%clk 0:02:33]}  h6 {[%clk 0:02:11]} 21. Kf1 {[%clk 0:02:18]}  Ke7 {[%clk 0:02:09]} 22. Ke1 {[%clk 0:02:15]}  Kd6 {[%clk 0:02:08]} 23. Kd2 {[%clk 0:02:14]}  Rb6 {[%clk 0:01:55]} 24. Bc4 {[%clk 0:02:09]}  f5 {[%clk 0:01:05]} 25. h4 {[%clk 0:02:06]}  Ne7 {[%clk 0:00:47]} 26. h5 {[%clk 0:02:01]}  c5 {[%clk 0:00:47]} 27. dxc5+ {[%clk 0:01:51]}  Kxc5 {[%clk 0:00:48]} 28. Rg1 {[%clk 0:01:49]}  g6 {[%clk 0:00:47]} 29. hxg6 {[%clk 0:01:49]}  Rxg6 {[%clk 0:00:46]} 30. Rh1 {[%clk 0:01:48]}  Rd6+ {[%clk 0:00:44]} 31. Ke2 {[%clk 0:01:48]}  b5 {[%clk 0:00:43]} 32. Bd3 {[%clk 0:01:48]}  Kb4 {[%clk 0:00:43]} 33. f4 {[%clk 0:01:43]}  Rb6 {[%clk 0:00:33]} 34. Bc2 {[%clk 0:01:40]}  Kc3 {[%clk 0:00:33]} 35. Bd1 {[%clk 0:01:36]}  Rd6 {[%clk 0:00:27]} 36. Rg1 {[%clk 0:01:34]}  Nd5 {[%clk 0:00:19]} 37. Kf3 {[%clk 0:01:20]}  Nb4 {[%clk 0:00:19]} 38. Be2 {[%clk 0:01:20]}  Rd5 {[%clk 0:00:13]} 39. Rh1 {[%clk 0:01:14]}  Kxb3 {[%clk 0:00:12]} 40. Rxh6 {[%clk 0:01:15]}  Na2 {[%clk 0:00:10]} 41. e4 {[%clk 0:01:06]}  fxe4+ {[%clk 0:00:09]} 42. Kxe4 {[%clk 0:01:06]}  Nc3+ {[%clk 0:00:10]} 43. Ke3 {[%clk 0:01:06]}  Rd8 {[%clk 0:00:09]} 44. Bg4 {[%clk 0:01:03]}  b4 {[%clk 0:00:08]} 45. Be6+ {[%clk 0:01:01]}  Kc2 {[%clk 0:00:07]} 46. Bf5+ {[%clk 0:00:55]}  Kc1 {[%clk 0:00:08]} 47. Rh1+ {[%clk 0:00:52]}  Kb2 {[%clk 0:00:04]} 48. Be6 {[%clk 0:00:48]}  b3 {[%clk 0:00:03]} 49. f5 {[%clk 0:00:46]}  Kc2 {[%clk 0:00:02]} 50. f6 {[%clk 0:00:44]}  Re8 {[%clk 0:00:03]} 51. Kf4 {[%clk 0:00:23]}  Rxe6 {[%clk 0:00:02]} 52. Kf5 {[%clk 0:00:23]}  Re8 {[%clk 0:00:02]} 53. f7 {[%clk 0:00:24]}  Rf8 {[%clk 0:00:02]} 54. Ke6 {[%clk 0:00:24]}  b2 {[%clk 0:00:02]} 55. f4 {[%clk 0:00:23]}  Nd1 {[%clk 0:00:02]} 56. Rh2+ {[%clk 0:00:22]}  Kc1 {[%clk 0:00:02]} 57. Rxb2 {[%clk 0:00:22]}  Nxb2 {[%clk 0:00:03]} 58. Ke7 {[%clk 0:00:23]}  Rxf7+ {[%clk 0:00:03]} 59. Kxf7 {[%clk 0:00:23]}  Nc4 {[%clk 0:00:04]} 60. Ke6 {[%clk 0:00:20]}  Ne3 {[%clk 0:00:04]} 61. Ke5 {[%clk 0:00:20]}  Kd2 {[%clk 0:00:04]} 62. Ke4 {[%clk 0:00:21]}  Ke2 {[%clk 0:00:04]} 63. Ke5 {[%clk 0:00:20]}  Kf3 {[%clk 0:00:04]} 64. f5 {[%clk 0:00:20]}  Nxf5 {[%clk 0:00:05]} 1/2-1/2


[Site "https://www.chess.com"]

[Event "Titled Tuesday Blitz June 22 2021"]
[White "Seo, Jung Min"]
[Black "Gelman, Alexander"]
[WhiteFideId "1734687"]
[BlackFideId "4118316"]
[WhiteElo "2486"]
[BlackElo "2375"]
[Result "1-0"]
[Round "11"]
[TimeControl "180+1"]
[Date "2021.06.22"]
[WhiteClock "0:00:04"]
[BlackClock "0:00:04"]

1. Nf3 {[%clk 0:03:00]}  Nf6 {[%clk 0:02:59]} 2. d4 {[%clk 0:03:00]}  c5 {[%clk 0:03:00]} 3. d5 {[%clk 0:03:00]}  e6 {[%clk 0:02:58]} 4. c4 {[%clk 0:03:00]}  b5 {[%clk 0:02:59]} 5. dxe6 {[%clk 0:02:59]}  fxe6 {[%clk 0:02:59]} 6. cxb5 {[%clk 0:02:59]}  d5 {[%clk 0:02:59]} 7. Nc3 {[%clk 0:02:53]}  Bb7 {[%clk 0:02:59]} 8. e4 {[%clk 0:02:51]}  d4 {[%clk 0:02:52]} 9. e5 {[%clk 0:02:51]}  Nfd7 {[%clk 0:02:17]} 10. Na4 {[%clk 0:02:50]}  Be7 {[%clk 0:02:17]} 11. Bc4 {[%clk 0:02:48]}  Nf8 {[%clk 0:02:04]} 12. O-O {[%clk 0:02:44]}  Nbd7 {[%clk 0:01:52]} 13. Re1 {[%clk 0:02:34]}  Nb6 {[%clk 0:01:52]} 14. b3 {[%clk 0:02:27]}  Nxc4 {[%clk 0:01:52]} 15. bxc4 {[%clk 0:02:27]}  Ng6 {[%clk 0:01:52]} 16. Ba3 {[%clk 0:02:24]}  Rc8 {[%clk 0:01:51]} 17. Nd2 {[%clk 0:02:15]}  O-O {[%clk 0:01:47]} 18. f3 {[%clk 0:02:15]}  Bh4 {[%clk 0:01:43]} 19. Nxc5 {[%clk 0:02:04]}  Rxc5 {[%clk 0:01:06]} 20. Bxc5 {[%clk 0:02:03]}  Rf5 {[%clk 0:01:05]} 21. Bd6 {[%clk 0:01:59]}  Nf4 {[%clk 0:01:00]} 22. Ne4 {[%clk 0:01:53]}  Bxe1 {[%clk 0:00:57]} 23. Qxe1 {[%clk 0:01:52]}  d3 {[%clk 0:00:52]} 24. Qe3 {[%clk 0:01:42]}  Qh4 {[%clk 0:00:35]} 25. Ng3 {[%clk 0:01:20]}  Rg5 {[%clk 0:00:20]} 26. Qxa7 {[%clk 0:01:12]}  Bxf3 {[%clk 0:00:16]} 27. Qb8+ {[%clk 0:00:40]}  Kf7 {[%clk 0:00:16]} 28. Qf8+ {[%clk 0:00:31]}  Kg6 {[%clk 0:00:17]} 29. Qe8+ {[%clk 0:00:13]}  Kh6 {[%clk 0:00:16]} 30. Be7 {[%clk 0:00:07]}  Ne2+ {[%clk 0:00:10]} 31. Kf1 {[%clk 0:00:07]}  Qxh2 {[%clk 0:00:01]} 32. Bxg5+ {[%clk 0:00:06]}  Kxg5 {[%clk 0:00:02]} 33. Qe7+ {[%clk 0:00:05]}  Kf4 {[%clk 0:00:01]} 34. Qf7+ {[%clk 0:00:02]}  Kxg3 {[%clk 0:00:01]} 35. Qxf3+ {[%clk 0:00:02]}  Kh4 {[%clk 0:00:02]} 36. Qh3+ {[%clk 0:00:02]}  Qxh3 {[%clk 0:00:02]} 37. gxh3 {[%clk 0:00:03]}  Kxh3 {[%clk 0:00:02]} 38. Ke1 {[%clk 0:00:03]}  g5 {[%clk 0:00:02]} 39. b6 {[%clk 0:00:03]}  g4 {[%clk 0:00:03]} 40. b7 {[%clk 0:00:04]}  g3 {[%clk 0:00:03]} 41. b8=Q {[%clk 0:00:03]}  g2 {[%clk 0:00:04]} 42. Kd2 {[%clk 0:00:04]} 1-0


[Site "https://www.chess.com"]